[Event "5th Schach960-Festival 2024"]
[Site "Berlin"]
[Date "2024.02.10"]
[Round "3.1"]
[White "Kollars, Dmitrij"]
[Black "Dgebuadze, Alexandre"]
[Result "0-1"]
[ECO "D00"]
[WhiteElo "2632"]
[BlackElo "2441"]
[Annotator "TA"]
[PlyCount "27"]
[EventDate "2024.02.08"]
[EventCountry "GER"]
[SourceTitle "playchess.com"]
[Source "ChessBase"]
[SourceQuality "1"]
[TimeControl "1500+30"]

{[%evp 9,27,-889,365,-957,118,-1017,65,-1285,154,-1610,-23,-1588,157,-1396,-317,-2137,-814,-2178,-1252,-2121]} 1. d4 {[%emt 0:00:15]} d5 {[%emt 0:01:35]} 2. Bf4 {[%emt 0:00:33]} Bf5 {[%emt 0:00:48]} 3. c3 {[%emt 0:03:21]} Bc2 {[%emt 0:03:21]} 4. f3 {[%emt 0:04:27]} Nf6 {[%emt 0:02:12]} 5. e4 {[%emt 0:03:41]} dxe4 $4 {[%emt 0:07:40][%mdl 8192] [#]} (5... Bxd1 $19 {and life is good for Black.} 6. Kxd1 dxe4) 6. fxe4 $4 {[%emt 0:02:45][%mdl 8192]} e5 $2 {[%emt 0:02:27] [#]} (6... Bxe4 7. Nd2 $15) ({Black should play} 6... Bxd1 $19 7. Kxd1 Nxe4) 7. Bd3 $2 {[%emt 0:03:01][%mdl 8192]} exf4 $2 {[%emt 0:02:08] [#]} (7... Bxd1 $19 8. Bxe5 Nc6 9. Bxf6 Qxf6 10. Kxd1 Nxd4) 8. Bc4 $2 {[%emt 0:00:06][%mdl 8192] [#]} Ng4 $2 {[%emt 0:02:42]} 9. a4 $2 {[%emt 0:05:53]} b5 $2 {[%emt 0:00:00]} (9... Bxe4 10. Qxg4 Qd7 11. Qe2 $11) (9... Bxd1 $19 10. Nd2 Ne3 11. Rxd1 Qh4+ (11... Nxg2+ $2 12. Kf2 $19) (11... Nxd1 $2 12. Kxd1 c5 13. d5 $19) 12. Ke2 Qg4+ 13. Ngf3 Nxc4 (13... Qxg2+ $2 14. Kd3 $19)) 10. Bd3 $2 {[%emt 0:02:35][%mdl 8192]} f6 $2 {[%emt 0:06:31] [#]} (10... Qh4+ $19 11. g3 fxg3 12. Bxb5+ c6) 11. d5 $2 {[%emt 0:02:00]} f5 $2 {[%emt 0:00:00]} (11... Bxd1 12. Kxd1 Nf2+ 13. Ke2 Nxh1) 12. Kf1 $2 {[%emt 0:00:57]} (12. Bxc2 Bc5 13. Nf3) 12... g5 {[%emt 0:00:00]} 13. c4 {[%emt 0:01:30]} bxc4 {[%emt 0:00:00]} 14. Bxc4 {[%emt 0:00:00] White did not feel at home in the position after the opening.   Weighted Error Value: White=4.00/Black=4.00.  Loses game:     	White=5     	---        Mistake:       	White=1     	---        Inaccurate:     	White=1     	---} 0-1

[Event "5th Schach960-Festival 2024"]
[Site "Berlin"]
[Date "2024.02.10"]
[Round "3.2"]
[White "Chatalbashev, Boris"]
[Black "Fedorchuk, Sergey A."]
[Result "0-1"]
[WhiteElo "2457"]
[BlackElo "2550"]
[Annotator "TA"]
[PlyCount "15"]
[EventDate "2024.02.08"]
[EventCountry "GER"]
[SourceTitle "playchess.com"]
[Source "ChessBase"]
[SourceQuality "1"]
[TimeControl "1500+30"]

{[%evp 9,15,-63,91,-4,33,-81,-22,-197]} 1. c4 {[%emt 0:00:03]} c5 {[%emt 0:04:09]} 2. d4 {[%emt 0:00:00]} b5 {[%emt 0:00:35]} 3. dxc5 {[%emt 0:01:02]} bxc4 {[%emt 0:00:06]} 4. Nd2 {[%emt 0:05:24]} Nf6 {[%emt 0:10:22]} 5. a4 {[%emt 0:03:27]} Ng4 $2 {[%emt 0:04:08] [#]} (5... e6 $15 6. e3 Bxc5 7. Bxc4 O-O) 6. a5 {[%emt 0:14:26]} (6. e3 $16 Nf6 7. Nxc4 (7. Bxc4 a5 $14)) 6... h5 {[%emt 0:06:30]} 7. h4 {[%emt 0:04:01]} (7. h3 $14 {keeps the upper hand.} Ne5 8. Ngf3) 7... e5 {[%emt 0:00:00] Black is more active.} ({Black should play} 7... Na6 $17 8. e3 Bb7 (8... Nxc5 9. Bxc4 e6 10. Ngf3 $15)) 8. a6 $2 {[%emt 0:00:00] Weighted Error Value: White=1.05/Black=0.91.  Loses game:     	White=1     	---        Mistake:       	White=1     	Black=1      Inaccurate:     	---       	Black=1} (8. Nxc4 $11 Bxc5 9. Nd6+ Bxd6 10. Qxd6) 0-1

[Event "5th Schach960-Festival 2024"]
[Site "Berlin"]
[Date "2024.02.10"]
[Round "3.3"]
[White "Azarov, Sergei"]
[Black "Glek, Igor"]
[Result "1-0"]
[ECO "B20"]
[WhiteElo "2596"]
[BlackElo "2423"]
[Annotator "TA"]
[PlyCount "22"]
[EventDate "2024.02.08"]
[EventCountry "GER"]
[SourceTitle "playchess.com"]
[Source "ChessBase"]
[SourceQuality "1"]
[TimeControl "1500+30"]

{[%evp 9,22,43,45,-505,61,-457,297,-635,-164,-197,429,-785,310,-692,276]} 1. e4 {[%emt 0:00:04]} c5 {[%emt 0:02:42]} 2. d3 {[%emt 0:00:28]} b5 {[%emt 0:02:21]} 3. c3 {[%emt 0:00:49]} Bb7 {[%emt 0:00:30]} 4. a4 {[%emt 0:00:55]} a6 {[%emt 0:00:12]} 5. axb5 {[%emt 0:01:13]} axb5 {[%emt 0:00:01] [#]} 6. b4 $2 {[%emt 0:01:17][%mdl 8192]} Nf6 $2 {[%emt 0:01:05] [#]} (6... Rxa1 $19 7. Bb2 Ra7 8. bxc5 e6) 7. e5 $2 {[%emt 0:01:31][%mdl 8192]} Ne4 $4 {[%emt 0:00:25][%mdl 8192] [#]} (7... Rxa1 $19 8. Bb2 Ra8 (8... Ra2 $2 9. Qb3 $19) 9. exf6 cxb4 (9... gxf6 $2 10. bxc5 Ra2 11. Qc2 $19)) 8. Qb3 {[%emt 0:05:09][%mdl 8192]} Nd2 $2 {[%emt 0:02:53]} (8... Rxa1 9. e6 fxe6) 9. Nxd2 {[%emt 0:02:06]} cxb4 $4 {[%emt 0:07:09][%mdl 8192] [#]} (9... Rxa1 $19 10. Qb2 Rxc1+ 11. Qxc1 cxb4) 10. g3 $4 {[%emt 0:04:07][%mdl 8192]} f6 $4 {[%emt 0:01:42][%mdl 8192] [#]} (10... Bxh1 $2 11. Rxa8 Bxa8 12. Qxb4 $19) (10... Rxa1 $19 11. Ne2 Bxh1 12. cxb4 e6) 11. Ra3 $4 {[%emt 0:09:14][%mdl 8192]} Qb6 $4 {[%emt 0:07:44][%mdl 8192] Weighted Error Value: White=3.48/Black=3.95.  Loses game:     	White=1     	---        Missed win:     	White=3     	Black=3      Mistake:       	---       	Black=1} (11... bxa3 $19 {and all is fine.} 12. Ngf3 a2) 1-0

[Event "5th Schach960-Festival 2024"]
[Site "Berlin"]
[Date "2024.02.10"]
[Round "3.4"]
[White "Fromm, Marius"]
[Black "Fridman, Daniel"]
[Result "0-1"]
[WhiteElo "2435"]
[BlackElo "2588"]
[Annotator "TA"]
[PlyCount "13"]
[EventDate "2024.02.08"]
[EventCountry "GER"]
[SourceTitle "playchess.com"]
[Source "ChessBase"]
[SourceQuality "1"]
[TimeControl "1500+30"]

{[%evp 8,13,92,100,97,-72,122,178]} 1. d4 {[%emt 0:00:09]} Nf6 {[%emt 0:00:20]} 2. Nf3 {[%emt 0:01:10]} d6 {[%emt 0:00:26]} 3. c3 {[%emt 0:01:20]} e5 {[%emt 0:00:00]} 4. h3 {[%emt 0:03:01]} Be6 {[%emt 0:00:40]} 5. dxe5 {[%emt 0:01:42]} dxe5 {[%emt 0:00:00]} 6. b3 $2 {[%emt 0:03:45] [#]} ({Much weaker is} 6. Nxe5 Bd6 7. Nf3 O-O $14) (6. Qxd8+ $16 {stays on course.} Kxd8 7. Nxe5) 6... Nh5 $2 {[%emt 0:18:46]} (6... Qxd1+ $17 7. Kxd1 Ne4) 7. Qxd8+ {[%emt 0:15:15][%mdl 32768] Mistake:       	White=1     	Black=1      Best:        	White=1     	---       . Loss on time!?} ({Don't play} 7. Nxe5 $6 Bd6 8. e4 Bxe5 $11) 0-1

[Event "5th Schach960-Festival 2024"]
[Site "Berlin"]
[Date "2024.02.10"]
[Round "3.5"]
[White "Kunin, Vitaly"]
[Black "Stopa, Jacek"]
[Result "1-0"]
[ECO "D00"]
[WhiteElo "2521"]
[BlackElo "2344"]
[Annotator "RC"]
[PlyCount "37"]
[EventDate "2024.02.08"]
[EventCountry "GER"]
[SourceTitle "playchess.com"]
[Source "ChessBase"]
[SourceQuality "1"]
[TimeControl "1500+30"]

1. d4 {[%emt 0:00:54]} d5 {[%emt 0:00:13]} 2. c3 {[%emt 0:00:22]} c6 {[%emt 0:00:15]} 3. e4 {[%emt 0:00:29]} dxe4 {[%emt 0:00:00]} 4. Qe2 {[%emt 0:00:00]} Bg4 {[%emt 0:01:00]} 5. Nf3 {[%emt 0:00:34]} Bxf3 {[%emt 0:03:26]} 6. Qxf3 {[%emt 0:02:16]} e5 {[%emt 0:04:24]} 7. dxe5 {[%emt 0:00:00]} Nf6 {[%emt 0:01:19]} 8. Bf4 {[%emt 0:07:43]} Qc8 {[%emt 0:01:05]} 9. Bh6 {[%emt 0:02:42]} Qd7 {[%emt 0:01:49]} 10. Qe2 {[%emt 0:03:28]} Nh5 {[%emt 0:04:03]} 11. g3 {[%emt 0:00:25]} Nf6 {[%emt 0:03:02]} 12. c4 {[%emt 0:01:52]} c5 {[%emt 0:02:33]} 13. h4 {[%emt 0:05:16]} Nd5 {[%emt 0:02:45]} 14. a3 {[%emt 0:00:18]} b5 {[%emt 0:01:19]} 15. g4 {[%emt 0:01:23]} f5 {[%emt 0:00:05]} 16. b3 {[%emt 0:01:04]} g5 {[%emt 0:02:37]} 17. b4 {[%emt 0:02:03]} bxc4 {[%emt 0:00:49]} 18. bxc5 {[%emt 0:00:54]} Nf4 {[%emt 0:01:09]} 19. c6 {[%emt 0:03:17]} 1-0

[Event "5th Schach960-Festival 2024"]
[Site "Berlin"]
[Date "2024.02.10"]
[Round "3.6"]
[White "Trent, Lawrence"]
[Black "Shchekachev, Andrei"]
[Result "1-0"]
[ECO "A31"]
[WhiteElo "2406"]
[BlackElo "2506"]
[Annotator "TA"]
[PlyCount "25"]
[EventDate "2024.02.08"]
[EventCountry "GER"]
[SourceTitle "playchess.com"]
[Source "ChessBase"]
[SourceQuality "1"]
[TimeControl "1500+30"]

{[%evp 9,25,-403,9,-137,11,-87,361,-16,290,-102,210,-441,143,27,364,20,362,-121]} 1. c4 {[%emt 0:00:13]} c5 {[%emt 0:00:49]} 2. Nf3 {[%emt 0:00:59]} Nf6 {[%emt 0:00:40]} 3. d4 {[%emt 0:00:00]} cxd4 {[%emt 0:00:15]} 4. b3 {[%emt 0:01:21]} e6 {[%emt 0:06:17]} 5. Ba3 {[%emt 0:05:59]} d6 $2 {[%emt 0:05:32]} (5... Bxa3 $19 6. Nxa3 Qa5+ 7. Qd2 Qxa3 8. Nxd4 Ne4) 6. Bb2 {[%emt 0:05:35]} (6. Nxd4 $11 {remains equal.} Be7 7. Nc3) 6... Ne4 {[%emt 0:01:19]} (6... e5 $17 {And now ...Nc6 would win.} 7. e3 dxe3 8. fxe3 Qb6) 7. Qc2 {[%emt 0:02:10] [#]} (7. Qxd4 $11 {keeps the balance.} d5 8. cxd5 exd5 9. e3) 7... g6 $2 {[%emt 0:00:16][%mdl 8192]} 8. e3 $2 {[%emt 0:02:19] [#]} (8. Qxe4 $18 Bg7 9. Nxd4) 8... e5 $2 {[%emt 0:03:45][%mdl 8192]} 9. a4 $2 {[%emt 0:06:13] [#]} ({White has to play} 9. Qxe4 $18 f5 10. Qc2) 9... a6 $2 {[%emt 0:01:12][%mdl 8192] [#]} 10. Nc3 $4 {[%emt 0:01:19][%mdl 8192] [#]} d5 $2 {[%emt 0:07:02]} 11. exd4 {[%emt 0:02:58]} ({Only move:} 11. Nxd5 $16 Nf6 12. Nxe5 (12. exd4 Nxd5 13. cxd5 Bb4+ 14. Bc3 Bf5 $14)) 11... Nf6 {[%emt 0:01:31][%mdl 8192]} (11... Bb4 $11 12. Nxe5 (12. dxe5 d4 $17) 12... O-O) 12. a5 $2 {[%emt 0:00:58]} (12. Nxe5 Nc6 $16) (12. dxe5 $18 d4 13. Nxd4) 12... Qe7 {[%emt 0:01:44][%mdl 8192]} (12... Bf5 $11 {and Black has nothing to worry.} 13. Qd2 Nc6) 13. Rd1 $2 {[%emt 0:01:56][%mdl 32768] Weighted Error Value: White=2.53/Black=3.28.  Loses game:     	---       	Black=5      Missed win:     	White=5     	Black=1      Mistake:       	White=2     	Black=1     . Loss on time!?} ({Weaker is} 13. cxd5 exd4+ 14. Kd1 (14. Ne2 Bf5 $11) 14... Qd8 (14... dxc3 15. Qxc3 Nbd7 16. Bc4 $16) 15. Nxd4 Be7 $16) (13. Nxe5 Nc6 14. Nxd5 (14. cxd5 $2 {is the wrong capture.} Nxd4 15. Qd2 Qxe5+ $19) 14... Nxd5 15. cxd5 Nb4 $18) (13. Nxd5 Nxd5 14. cxd5 Bf5 $18) (13. dxe5 $18 Nc6 14. Qe2 (14. Nxd5 Nxd5 15. cxd5 Qb4+ 16. Ke2 Nxa5 $18) (14. cxd5 Nxe5 15. Nxe5 Qxe5+ 16. Qe2 Qxe2+ 17. Bxe2 Bf5 $18)) 1-0

[Event "5th Schach960-Festival 2024"]
[Site "Berlin"]
[Date "2024.02.10"]
[Round "3.7"]
[White "Loew, Gerald"]
[Black "Bluebaum, Matthias"]
[Result "0-1"]
[ECO "D13"]
[WhiteElo "2167"]
[BlackElo "2655"]
[Annotator "TA"]
[PlyCount "22"]
[EventDate "2024.02.08"]
[EventCountry "GER"]
[SourceTitle "playchess.com"]
[Source "ChessBase"]
[SourceQuality "1"]
[TimeControl "1500+30"]

{[%evp 9,22,-25,-14,-16,21,22,278,-455,-194,-598,-133,-905,-420,-591,-179]} 1. c4 {[%emt 0:00:12]} c6 {[%emt 0:00:41]} 2. d4 {[%emt 0:00:27]} d5 {[%emt 0:00:05]} 3. cxd5 {[%emt 0:01:11]} cxd5 {[%emt 0:00:02]} 4. Nf3 {[%emt 0:00:20]} Nf6 {[%emt 0:00:48]} 5. Nbd2 {[%emt 0:00:51]} e6 {[%emt 0:05:00]} 6. a3 {[%emt 0:10:47]} Nc6 {[%emt 0:07:23]} 7. b4 {[%emt 0:00:47]} Na5 $2 {[%emt 0:00:45][%mdl 8192] [#]} 8. Nc4 $4 {[%emt 0:07:22][%mdl 8192]} dxc4 {[%emt 0:00:00]} (8... Nxc4 $142 9. e3 Bd6) 9. d5 $2 {[%emt 0:02:24] [#]} (9. bxa5 Qxa5+ 10. Qd2) 9... Ke7 $2 {[%emt 0:06:27]} 10. Kd2 $2 {[%emt 0:00:00][%mdl 8192]} (10. bxa5 $17 Qxa5+ (10... Qxd5 11. Qc2 $17) 11. Bd2) 10... g5 {[%emt 0:00:29]} (10... Nb3+ $142 11. Ke1 Nxa1) 11. Kc2 {[%emt 0:00:00] [#]} (11. Ke1 $142 Nb3 12. Bxg5) 11... a6 $2 {[%emt 0:00:00] Weighted Error Value: White=2.57/Black=2.66.  Loses game:     	White=1     	Black=1      Missed win:     	White=1     	Black=1      Mistake:       	White=2     	Black=2      Inaccurate:     	---       	Black=1} 0-1

[Event "5th Schach960-Festival 2024"]
[Site "Berlin"]
[Date "2024.02.10"]
[Round "3.8"]
[White "Orlov, Andrey"]
[Black "Van den Doel, Erik"]
[Result "1/2-1/2"]
[ECO "D02"]
[WhiteElo "2487"]
[BlackElo "2551"]
[Annotator "RC"]
[PlyCount "37"]
[EventDate "2024.02.08"]
[EventCountry "GER"]
[SourceTitle "playchess.com"]
[Source "ChessBase"]
[SourceQuality "1"]
[TimeControl "1500+30"]

1. d4 {[%emt 0:00:26]} d5 {[%emt 0:02:07]} 2. Bf4 {[%emt 0:00:58]} Bf5 {[%emt 0:00:05]} 3. Nf3 {[%emt 0:00:55]} e6 {[%emt 0:00:50]} 4. Qc1 {[%emt 0:02:40]} Qc8 {[%emt 0:00:53]} 5. e3 {[%emt 0:02:25]} Be7 {[%emt 0:00:56]} 6. c3 {[%emt 0:01:27]} Nf6 {[%emt 0:03:44]} 7. Ne5 {[%emt 0:01:42]} Bc2 {[%emt 0:03:22]} 8. Qxc2 {[%emt 0:00:02]} Nh5 {[%emt 0:00:05]} 9. Qe2 {[%emt 0:03:03]} Nxf4 {[%emt 0:00:56]} 10. exf4 {[%emt 0:00:01]} O-O {[%emt 0:00:07]} 11. h4 {[%emt 0:00:21]} c5 {[%emt 0:00:46]} 12. h5 {[%emt 0:00:12]} h6 {[%emt 0:00:47]} 13. dxc5 {[%emt 0:03:10]} Bxc5 {[%emt 0:02:05]} 14. Rh3 {[%emt 0:00:00]} b5 {[%emt 0:03:50]} 15. a3 {[%emt 0:01:37]} a5 {[%emt 0:07:49]} 16. Qd1 {[%emt 0:11:04]} b4 {[%emt 0:01:43]} 17. axb4 {[%emt 0:00:03]} axb4 {[%emt 0:00:25]} 18. f5 {[%emt 0:01:05]} Kh7 {[%emt 0:02:40]} 19. Re3 {[%emt 0:03:49]} 1/2-1/2

[Event "5th Schach960-Festival 2024"]
[Site "Berlin"]
[Date "2024.02.10"]
[Round "3.9"]
[White "Zatonskih, Anna"]
[Black "Borgmeyer, Max"]
[Result "1-0"]
[WhiteElo "2347"]
[BlackElo "2213"]
[Annotator "TA"]
[PlyCount "17"]
[EventDate "2024.02.08"]
[EventCountry "GER"]
[SourceTitle "playchess.com"]
[Source "ChessBase"]
[SourceQuality "1"]
[TimeControl "1500+30"]

{[%evp 9,17,72,262,142,291,133,1550,209,1731,170]} 1. e4 {[%emt 0:01:23]} e5 {[%emt 0:01:15]} 2. Nf3 {[%emt 0:00:36]} d6 {[%emt 0:00:20]} 3. c3 {[%emt 0:01:51]} c5 {[%emt 0:02:40]} 4. d4 {[%emt 0:01:13]} cxd4 {[%emt 0:00:09]} 5. cxd4 {[%emt 0:21:31]} b5 $2 {[%emt 0:15:58] [#]} 6. a3 {[%emt 0:00:41]} ({Much less strong is} 6. Bxb5+ Bd7 $18) ({White should try} 6. dxe5 $18 {Qd5 would now be deadly.} a6 7. a4) 6... h5 {[%emt 0:02:03]} (6... a6 $16) 7. Qd2 {[%emt 0:00:00]} (7. dxe5 $18 {is more deadly.} a6 8. Nc3) 7... Qa5 $2 {[%emt 0:02:02][%mdl 8192]} (7... a6 $16) 8. dxe5 $2 {[%emt 0:01:10]} (8. Qxa5 Bd7 9. Bxb5) 8... g6 $2 {[%emt 0:03:28]} (8... Qxd2+ 9. Bxd2 (9. Nbxd2 Bd7 $18) 9... a6) 9. h4 $2 {[%emt 0:01:35] White took control after the opening.   Weighted Error Value: White=2.42/Black=1.82.  Loses game:     	---       	Black=1      Mistake:       	White=2     	Black=2} (9. Qxa5 Bd7 10. Bxb5 dxe5 11. Nxe5) 1-0

[Event "5th Schach960-Festival 2024"]
[Site "Berlin"]
[Date "2024.02.10"]
[Round "3.10"]
[White "Piz, Maxim"]
[Black "Kurz, Alexander"]
[Result "1-0"]
[ECO "A40"]
[WhiteElo "2149"]
[BlackElo "2292"]
[Annotator "TA"]
[PlyCount "23"]
[EventDate "2024.02.08"]
[EventCountry "GER"]
[SourceTitle "playchess.com"]
[Source "ChessBase"]
[SourceQuality "1"]
[TimeControl "1500+30"]

{[%evp 9,23,41,144,-1109,331,-1137,468,472,1175,49,1160,57,727,114,89,-781]} 1. d4 {[%emt 0:00:00][%cal Bd2d4,Bd4d5,Bd5e6][%mdl 32]} c6 {[%emt 0:00:00]} 2. d5 {[%emt 0:01:29]} e5 {[%emt 0:00:52]} 3. dxe6 {[%emt 0:00:00]} h5 {[%emt 0:02:09]} 4. b3 {[%emt 0:00:03]} Be7 {[%emt 0:01:13]} 5. a4 {[%emt 0:00:19]} Bc5 {[%emt 0:01:02] [#]} (5... dxe6 $14 6. Qxd8+ Bxd8) 6. Qd4 $2 {[%emt 0:00:42][%mdl 8192] Active counter play!} Qe7 $4 {[%emt 0:00:28][%mdl 8192]} (6... Bxd4 $19 {avoids the disaster.} 7. c3 Bf6 8. exf7+ Kxf7) 7. b4 $4 {[%emt 0:00:19][%mdl 8192]} (7. Qxg7 $18 Qf6 8. exf7+ Qxf7 9. Qxh8 (9. Qe5+ Be7 $18) 9... Bxf2+ 10. Kd1 Qd5+ 11. Bd2) 7... b6 $4 {[%emt 0:00:00][%mdl 8192]} (7... Bxd4 $19 8. c3 Bf6 9. exf7+ Qxf7 (9... Kxf7 $2 10. e3 $19)) 8. bxc5 {[%emt 0:04:03] White is clearly winning.} bxc5 {[%emt 0:02:10]} (8... fxe6 $142 9. Ba3 (9. cxb6 axb6 10. Nf3 c5 $18) 9... Na6 10. cxb6 c5) 9. Ba3 $2 {[%emt 0:00:00]} (9. Qxg7 $18 Qf6 10. exf7+ Qxf7 11. Qxh8) 9... h4 $2 {[%emt 0:03:13][%mdl 8192] [#]} (9... cxd4 $14 10. Bxe7 Nxe7) 10. h3 $2 {[%emt 0:00:00]} (10. Qxg7 $18 Qxe6 11. Qxh8) 10... Rh6 $2 {[%emt 0:05:26][%mdl 8192]} (10... cxd4 $14 11. Bxe7 Nxe7) 11. Nf3 $2 {[%emt 0:10:57]} (11. Qxg7 $18 {and White stays clearly on top.} Qf8 12. Qxf8+ Kxf8 13. exd7 (13. Bxc5+ Ne7 $18) 13... Nxd7 14. Nc3) 11... cxd4 $16 {[%emt 0:08:41]} 12. Bc1 $2 {[%emt 0:00:00][%mdl 40960] Weighted Error Value: White=3.28/Black=2.69.  Loses game:     	---       	Black=2      Missed win:     	White=2     	Black=1      Best:        	---       	Black=1     . Loss on time!?} (12. Bxe7 $16 Nxe7 13. exf7+ (13. Nxd4 fxe6 14. e3 Na6 $11) 13... Kxf7 14. Nxd4) 1-0

[Event "5th Schach960-Festival 2024"]
[Site "Berlin"]
[Date "2024.02.10"]
[Round "4.2"]
[White "Dgebuadze, Alexandre"]
[Black "Azarov, Sergei"]
[Result "0-1"]
[ECO "C25"]
[WhiteElo "2441"]
[BlackElo "2596"]
[Annotator "TA"]
[PlyCount "29"]
[EventDate "2024.02.08"]
[EventCountry "GER"]
[SourceTitle "playchess.com"]
[Source "ChessBase"]
[SourceQuality "1"]
[TimeControl "1500+30"]

{[%evp 9,29,-19,29,-47,75,33,71,-80,65,-59,94,-33,0,-458,-60,-255,60,69,231,-82,-54,-585]} 1. Nc3 {[%emt 0:01:15]} e5 {[%emt 0:00:50]} 2. e4 {[%emt 0:00:51]} d6 {[%emt 0:02:09]} 3. d3 {[%emt 0:00:17]} f5 {[%emt 0:00:58]} 4. exf5 {[%emt 0:00:38]} Bxf5 {[%emt 0:00:46]} 5. Ne4 {[%emt 0:02:56]} Be6 {[%emt 0:03:45]} (5... Nc6 $142) 6. h4 {[%emt 0:02:58]} (6. Ng5 $11 Bf5 7. Qf3) 6... h5 {[%emt 0:01:48]} (6... Nc6 $15) 7. Be3 {[%emt 0:01:12]} Nd7 {[%emt 0:00:52] [#]} 8. Rh3 $2 {[%emt 0:02:50]} b6 {[%emt 0:01:22] [#]} (8... d5 $17 9. Ng5 Bxh3 10. N1xh3 Qf6) 9. Qe2 {[%emt 0:06:02]} a5 $2 {[%emt 0:09:36] [#]} (9... Bg4 $1 $15 {stays ahead.} 10. Rf3 d5) 10. a4 {[%emt 0:07:00]} Qe7 {[%emt 0:00:00][%cal Oe6g4]} 11. Bc5 $2 {[%emt 0:03:27][%mdl 8192]} b5 $2 {[%emt 0:00:05]} (11... bxc5 12. Ng5 $19) (11... Bxh3 12. Qf3 $19) (11... Nxc5 $19 12. Nf3 Bxh3 13. gxh3 Nf6) 12. d4 $2 {[%emt 0:00:46]} Nxc5 $2 {[%emt 0:07:32]} ({Don't do} 12... Bxh3 13. Nxh3 dxc5 14. dxc5 $19) ({Black should try} 12... dxc5 $19 13. dxc5 Ngf6 (13... Nxc5 14. Rc3 $17)) 13. dxc5 $14 {[%emt 0:00:00]} Rc8 $2 {[%emt 0:00:00] [#]} (13... d5 $14) 14. c4 $2 {[%emt 0:00:00]} bxc4 $17 {[%emt 0:00:00] White must now prevent ...d5.} ({Of course not} 14... Bxc4 $6 15. Qd2 $11) 15. Rd3 $2 {[%emt 0:00:00][%mdl 8192] Weighted Error Value: White=1.85/Black=1.45.  Loses game:     	White=3     	Black=1      Missed win:     	White=1     	Black=2      Mistake:       	White=3     	Black=3      Inaccurate:     	White=1     	Black=2      Best:        	---       	Black=1} 0-1